Cogmind - Beta 13 @@@ ROGUE MODE // 2024.04.11 @ 12:54:35 Player: Gasoline_Joe Result: Destroyed by Y-45 Defender with Beam Rifle Performance ------------- Evolutions (2) 1000 Regions Visited (5) 1000 Robots Destroyed (87) 435 Value Destroyed (2665) 2665 Prototype IDs (3) 60 Alien Tech Used (0) 0 Bonus (-12) -12 TOTAL SCORE: 5148 Bonus ------- High Alert Combat Kills 65 Follower Combat Kills 105 Friendly Fire -182 Cogmind --------- Core Integrity 0/550 Matter 300/300 Energy 100/100 System Corruption 5% Temperature Cool (9) Movement Core (200) Ox3 Location -8/Storage Parts ------- > --- POWER (1) -------- (None) > --- PROPULSION (3) --- (None) > --- UTILITY (5) ------ Medium Storage Unit Improved Signal Interpreter Armor Integrity Analyzer > --- WEAPON (2) ------- (None) > --- INVENTORY (10) --- Improved Ion Engine Micro Nuclear Core Light Treads Medium Storage Unit Large Matter Pod (150) Improved Signal Interpreter Heavy Assault Rifle Heavy Assault Rifle High-powered Shotgun Mini Grenade Launcher Peak State ------------ > --- POWER ------------ Micro Nuclear Core > --- PROPULSION ------- Medium Treads Medium Treads Medium Treads > --- UTILITY ---------- Medium Storage Unit Sensor Array Improved Signal Interpreter Armor Integrity Analyzer Light Armor Plating > --- WEAPON ----------- Heavy Assault Rifle Shotgun > --- INVENTORY -------- Micro Nuclear Core Light Treads Medium Treads Medium Storage Unit Large Matter Pod Improved Signal Interpreter Light Armor Plating Assault Rifle High-powered Shotgun Mini Grenade Launcher [Rating: 32] Favorites ----------- Power Micro Nuclear Core Engine Light Ion Engine Power Core Micro Nuclear Core Propulsion Light Treads Treads Light Treads Leg Aluminum Leg Utility Medium Storage Unit Device Sensor Array Storage Medium Storage Unit Processor Improved Signal Interpreter Protection Hardened Light Armor Plating Weapon Assault Rifle Energy Gun EM Pulse Gun Ballistic Gun Assault Rifle Launcher Mini Grenade Launcher Build | -11 -10 -10 -9 -8 -8 ------- Run | Yrd Mat Min Mat Mat Sto Slots Evolved 4 | . . . 2 2 . Power . | . . . . . . Propulsion 1 | . . . 1 . . Utility 3 | . . . 1 2 . Weapon . | . . . . . . Parts Attached 64 | 7 2 3 14 20 18 Power 8 | 1 . 2 2 3 . Engine 5 | 1 . 2 2 . . Core 3 | . . . . 3 . Reactor . | . . . . . . Propulsion 19 | 2 . 1 6 5 5 Treads 15 | . . . 5 5 5 Leg 4 | 2 . 1 1 . . Wheel . | . . . . . . Hover . | . . . . . . Flight . | . . . . . . Utility 19 | 2 2 . 3 9 3 Device 5 | 1 1 . 1 2 . Storage 2 | 1 1 . . . . Processor 6 | . . . 1 5 . Hackware . | . . . . . . Protection 6 | . . . 1 2 3 Artifact . | . . . . . . Weapon 18 | 2 . . 3 3 10 Energy Gun 1 | 1 . . . . . Energy Cannon . | . . . . . . Ballistic Gun 13 | 1 . . 3 2 7 Ballistic Cannon . | . . . . . . Launcher 4 | . . . . 1 3 Special Weapon . | . . . . . . Impact Weapon . | . . . . . . Slashing Weapon . | . . . . . . Piercing Weapon . | . . . . . . Special Melee Weapon . | . . . . . . Unidentified Prototypes 3 | . . . 1 . 2 Parts Lost 21 | . . . . 5 16 Power 1 | . . . . . 1 Propulsion 7 | . . . . . 7 Utility 9 | . . . . 4 5 Weapon 4 | . . . . 1 3 Highest Loss Streak 6 | . . . . 2 6 To Critical Strikes . | . . . . . . Average Slot Usage (%) 95 | . 100 100 94 94 89 Engine 7 | . 14 14 11 2 . Core 3 | . . . . 6 8 Treads 17 | . . . 23 27 25 Leg 9 | . 28 28 7 . . Device 10 | . 14 14 11 10 2 Storage 10 | . 14 14 11 9 9 Processor 7 | . . . 2 12 18 Protection 5 | . . . 4 8 9 Energy Gun 4 | . 14 14 . . . Ballistic Gun 17 | . 14 14 21 17 16 Naked Turns . | . . . . . . Heaviest Build 31 | 13 18 24 29 31 28 Greatest Support 84 | 20 20 20 63 84 84 Greatest Overweight (x) 3 | 1 . 1 1 . 3 Average Overweight (x) . | . . . . . . Largest Inventory Capacity 10 | 8 10 10 10 10 10 Average Capacity 9 | 7 9 10 10 10 10 Most Carried 10 | 8 10 10 10 10 10 Average Carried 9 | 5 8 9 9 9 9 Final Capacity 10 | 8 10 10 10 10 10 Final Carried 10 | 8 10 10 10 10 10 Class Distribution -------------------- 87% | Mutant 7% | Scavenger-Skirmisher 3% | Scavenger-Mutant Dominant Class ---------------- Mutant | -10/Materials Mutant | -10/Mines Mutant | -9/Materials Mutant | -8/Materials Mutant | -8/Storage Resources | -11 -10 -10 -9 -8 -8 ----------- Run | Yrd Mat Min Mat Mat Sto Matter Collected 2479 | 288 71 249 369 733 769 Remotely . | . . . . . . Salvage Created 3441 | 149 213 170 681 918 1310 Parts 207 | 6 14 4 47 62 74 Haulers Intercepted 4 | . 2 . 2 . . Recyclers Shooed 4 | 1 . . . 2 1 Parts Field Recycled . | . . . . . . Retrieved Matter . | . . . . . . Parts Self-Destructed . | . . . . . . Prevented . | . . . . . . Kills | -11 -10 -10 -9 -8 -8 ------- Run | Yrd Mat Min Mat Mat Sto Combat Hostiles Destroyed 66 | . 4 6 13 19 24 Guns 60 | . 4 6 13 18 19 AOE 6 | . . . . 1 5 Classes Destroyed 15 | 2 3 1 4 1 4 Worker 4 | . . . 1 1 2 Builder 1 | . . . . . 1 Tunneler 2 | 2 . . . . . Hauler 4 | . 2 . 2 . . Recycler 7 | 1 . . 1 1 4 Mechanic 1 | . . . . . 1 Operator 1 | . . . 1 . . Watcher 4 | . . . 1 3 . Swarmer 9 | . 3 . 3 3 . Grunt 40 | . 1 2 8 12 17 Brawler 2 | . . . . 1 1 Duelist 1 | . . . . . 1 Protector 1 | . . . . . 1 Sentry 9 | . . . 2 3 4 Assembled 4 | . . 4 . . . Thug 1 | . . . . . 1 Best Kill Streak 6 | 2 3 2 6 5 6 Combat Bots Only 6 | . 3 2 6 4 5 Max Kills in Single Turn 4 | 1 1 1 2 1 4 Gunslinging 1 | . . . 1 . . Exploded 3 | . . . . 1 3 Melee . | . . . . . . Uniques/NPCs Destroyed . | . . . . . . Combat | -11 -10 -10 -9 -8 -8 -------- Run | Yrd Mat Min Mat Mat Sto Hostile Shots Fired 383 | . 14 19 54 119 177 Missed 101 | . 8 7 11 28 47 Damage Taken 4218 | . 59 194 519 1222 2224 Core 618 | . . 28 40 174 376 Absorbed by Shields 132 | . . . . 132 . Redirected to Shielding 14 | . . . . 14 . Core Remaining (%) 92 | 100 . 88 90 . . Volleys Fired 247 | 6 17 23 47 74 80 Largest 2 | 2 2 2 2 2 2 Hottest 60 | 60 60 60 43 46 53 Shots Fired 476 | 12 34 46 94 141 149 Gun 465 | 12 34 46 94 139 140 Cannon . | . . . . . . Launcher 11 | . . . . 2 9 Special . | . . . . . . Kinetic 419 | 6 17 23 94 139 140 Thermal . | . . . . . . Explosive 11 | . . . . 2 9 Electromagnetic 46 | 6 17 23 . . . Robot Hit Streak 18 | 2 5 9 12 11 18 Robot Miss Streak 8 | 3 2 8 4 4 5 Penetration Max . | . . . . . . Secondary Targets 3 | . . . 3 . . Max Gunslinging Chain 1 | . . . 1 . . Shots Hit Robots 315 | 6 23 24 59 105 98 Core Hits 190 | 4 10 11 33 59 73 Critical Kills 2 | . . . 1 1 . Critical Parts Destroyed 1 | 1 . . . . . Critical Strikes 3 | 1 . . 1 1 . Destroy 3 | 1 . . 1 1 . Melee Attacks . | . . . . . . Impact . | . . . . . . Slashing . | . . . . . . Piercing . | . . . . . . Sneak Attacks . | . . . . . . Combat Hostiles . | . . . . . . Follow-up Attacks . | . . . . . . Damage Inflicted 5874 | 86 299 314 779 1648 2748 Guns 4512 | 86 299 314 779 1495 1539 Cannons . | . . . . . . Explosions 1362 | . . . . 153 1209 Melee . | . . . . . . Ramming . | . . . . . . Kinetic 4166 | 46 167 140 779 1495 1539 Thermal . | . . . . . . Explosive 1362 | . . . . 153 1209 Electromagnetic 346 | 40 132 174 . . . Impact . | . . . . . . Slashing . | . . . . . . Piercing . | . . . . . . Highest Corruption 5 | . . . . 5 5 Average Corruption 5 | . . . . 5 5 Corruption Purged . | . . . . . . Corruption Blocked . | . . . . . . Effects 39 | . . . . 10 29 Message Errors 5 | . . . . 1 4 Matter Fused 10 | . . . . 2 8 Heat Flow Errors 4 | . . . . . 4 Energy Discharges 5 | . . . . 4 1 Parts Rejected 1 | . . . . . 1 Parts Fused 1 | . . . . . 1 Data Loss (minor) 7 | . . . . 2 5 Data Loss (major) 1 | . . . . . 1 Misfires 3 | . . . . . 3 Alerts 1 | . . . . 1 . Weapon Failures 1 | . . . . . 1 Overload Shots . | . . . . . . Overflow Damage 13 | . . . . . 13 Projectiles . | . . . . . . Explosions 13 | . . . . . 13 Melee . | . . . . . . Knockbacks . | . . . . . . Impact . | . . . . . . Kinetic . | . . . . . . Secondary . | . . . . . . Self-Inflicted Damage 188 | . . . . 6 182 Shots 4 | . . . . 1 3 Rammed . | . . . . . . Targets Rammed . | . . . . . . Kicked . | . . . . . . Crushed . | . . . . . . Highest Temperature 252 | . 6 80 5 90 252 Average Temperature 34 | . 6 29 2 40 35 Received Heat Transfer 2212 | . 12 148 213 588 1251 Effects 1 | . . . . . 1 Energy Bleed 1 | . . . . . 1 Siege Activations . | . . . . . . Robots Corrupted . | . . . . . . Combat Hostiles . | . . . . . . Parts Fried . | . . . . . . Impact Corruptions . | . . . . . . Robots Melted . | . . . . . . Combat Hostiles . | . . . . . . Parts Melted . | . . . . . . Heat Transferred . | . . . . . . Parts Sabotaged . | . . . . . . Parts Stolen . | . . . . . . Parts Stripped . | . . . . . . Power Chain Reactions . | . . . . . . Alert | -11 -10 -10 -9 -8 -8 ------- Run | Yrd Mat Min Mat Mat Sto Peak Influence 526 | 15 143 50 214 278 526 Initial 76 | . 9 . . 48 76 Average 102 | 5 31 4 96 95 252 Maximum Alert Level 2 | . . . 1 1 2 Low Security (%) 85 | 100 100 100 92 93 45 Level 1 10 | . . . 7 6 33 Level 2 4 | . . . . . 20 Level 3 . | . . . . . . Level 4 . | . . . . . . Level 5 . | . . . . . . High Security . | . . . . . . Max Security . | . . . . . . Squads Dispatched 12 | . . 1 1 3 7 Investigation 3 | . . 1 . 1 1 Extermination . | . . . . . . Reinforcement 7 | . . . 1 2 4 Assault 2 | . . . . . 2 Garrison . | . . . . . . Intercept . | . . . . . . Searches Triggered . | . . . . . . Construction Impeded 2 | . . . . . 2 Haulers Reinforced . | . . . . . . Active Scanning Responses . | . . . . . . Cargo Convoy Interrupts . | . . . . . . Stealth | -11 -10 -10 -9 -8 -8 --------- Run | Yrd Mat Min Mat Mat Sto Distress Signals 9 | . . . 3 5 1 Communications Jammed . | . . . . . . Distress Signals . | . . . . . . Times Spotted 116 | . 7 9 25 32 43 Peak Tracking Total 9 | . 4 5 7 5 9 Tactical Retreats 7 | . . 2 1 3 1 Traps | -11 -10 -10 -9 -8 -8 ------- Run | Yrd Mat Min Mat Mat Sto Traps Triggered 2 | . . . . 1 1 Indirectly . | . . . . . . Trap Hack Attempts . | . . . . . . Triggered . | . . . . . . Disarmed . | . . . . . . Reprogrammed . | . . . . . . Reused . | . . . . . . Traps Extracted . | . . . . . . Installed . | . . . . . . Triggered . | . . . . . . Machines | -11 -10 -10 -9 -8 -8 ---------- Run | Yrd Mat Min Mat Mat Sto Machines Disabled 8 | . . 1 . 1 6 Max in Single Turn 3 | . . 1 . 1 3 Garrison Access 1 | . . . . 1 . Machines Repaired . | . . . . . . Machines Dismantled . | . . . . . . Machines Sabotaged . | . . . . . . Overloaded Fab Kills . | . . . . . . Hacking | -11 -10 -10 -9 -8 -8 --------- Run | Yrd Mat Min Mat Mat Sto Machines Accessed 18 | . 3 1 6 4 4 Terminals 14 | . 2 . 6 2 4 Fabricators . | . . . . . . Repair Stations . | . . . . . . Recycling Units 2 | . 1 . . 1 . Scanalyzers . | . . . . . . Garrison Access 1 | . . . . 1 . Total Hacks 37 | . 7 1 15 9 5 Successful 18 | . . 1 7 6 4 Failed 19 | . 7 . 8 3 1 Catastrophic 2 | . 1 . 1 . . Database Lockouts . | . . . . . . Manual 18 | . 5 . 12 1 . Terminals 28 | . 5 . 15 3 5 Fabricators . | . . . . . . Repair Stations . | . . . . . . Recycling Units 6 | . 2 . . 4 . Scanalyzers . | . . . . . . Garrison Access 2 | . . . . 2 . Terminal Hacks 10 | . . 1 2 3 4 Record 2 | . . . 1 1 . Open Door 3 | . . 1 . . 2 Branch Access Points 1 | . . . . 1 . Emergency Access Points 1 | . . . . . 1 Alert Level 1 | . . . . 1 . Locate Traps 1 | . . . 1 . . Zone Layout 1 | . . . . . 1 Fabricator Hacks . | . . . . . . Repair Station Hacks . | . . . . . . Recycling Unit Hacks 2 | . . . . 2 . Report Inventory 1 | . . . . 1 . Retrieve Matter 1 | . . . . 1 . Scanalyzer . | . . . . . . Garrison Access Hacks 1 | . . . . 1 . Seal Access 1 | . . . . 1 . Unauthorized Hacks 5 | . . . 5 . . Terminals 5 | . . . 5 . . Assimilate 4 | . . . 4 . . Operators 1 | . . . 1 . . Fabricators . | . . . . . . Repair Stations . | . . . . . . Recycling Units . | . . . . . . Scanalyzers . | . . . . . . Garrison Access . | . . . . . . Data Cores Recovered . | . . . . . . Used . | . . . . . . Hacking Detections 11 | . 3 . 5 2 1 Full Trace Events . | . . . . . . Feedback Events . | . . . . . . Feedback Blocked . | . . . . . . Robot Schematics Acquired . | . . . . . . Robots Built . | . . . . . . Authchips . | . . . . . . Time . | . . . . . . Total Robot Build Rating . | . . . . . . Part Schematics Acquired . | . . . . . . Parts Built . | . . . . . . Authchips . | . . . . . . Time . | . . . . . . Total Part Build Rating . | . . . . . . Parts Repaired . | . . . . . . Time . | . . . . . . Parts Recycled . | . . . . . . Recycled Matter . | . . . . . . Retrieved Matter . | . . . . . . Retrieved Components . | . . . . . . Parts Scanalyzed . | . . . . . . Part Schematics Acquired . | . . . . . . Parts Damaged . | . . . . . . Bothacking | -11 -10 -10 -9 -8 -8 ------------ Run | Yrd Mat Min Mat Mat Sto Used RIF Installer . | . . . . . . Robots Hacked . | . . . . . . Non-combat . | . . . . . . Combat . | . . . . . . Robot Hacks Applied . | . . . . . . Relay Couplers Released . | . . . . . . Fabnet Peak Effective % . | . . . . . . Robots Rewired . | . . . . . . Allies Hacked . | . . . . . . Hacks Repelled . | . . . . . . Allies | -11 -10 -10 -9 -8 -8 -------- Run | Yrd Mat Min Mat Mat Sto Total Allies 3 | . . . 1 . 2 Largest Group 2 | . . . 1 . 2 Highest-Rated Group 62 | . . . 10 . 62 Highest-Rated Ally 31 | . . . 10 . 31 Total Orders . | . . . . . . Ally Attacks 19 | . . . . . 19 Total Damage 357 | . . . . . 357 Kills 3 | . . . . . 3 Allies Corrupted . | . . . . . . Allies Melted . | . . . . . . Intel | -11 -10 -10 -9 -8 -8 ------- Run | Yrd Mat Min Mat Mat Sto Robot Analysis Total . | . . . . . . Derelict Logs Recovered 2 | . . 2 . . . Drone Launches . | . . . . . . Drone Recoveries . | . . . . . . Exploration | -11 -10 -10 -9 -8 -8 ------------- Run | Yrd Mat Min Mat Mat Sto Turns Passed 4820 | 117 535 858 1017 1305 988 Spaces Moved 2161 | 65 375 334 444 532 411 Core 16 | 13 . . . . 3 Treads 1307 | . . . 367 532 408 Legs 838 | 52 375 334 77 . . Wheels . | . . . . . . Hover . | . . . . . . Flight . | . . . . . . Fastest Speed 50 | 50 120 120 120 160 160 Average Speed 152 | 113 120 172 153 160 160 Slowest Speed 200 | 120 120 190 190 160 200 Overloaded Moves . | . . . . . . Propulsion Burnouts . | . . . . . . Robots Hopped . | . . . . . . Cave-ins Triggered . | . . . . . . Exploration Rate (%) 38 | 5 47 56 42 34 48 Regions Visited 5 Branch Regions 2 Pre-discovered Areas . | . . . . . . Known Exits Taken 1 | . . . . 1 . Unknown Exits Taken 4 | 1 1 1 1 . . Scrap Searched 2 | . . 2 . . . Spaces Dug 9 | . . . . . 9 Terrain Destroyed 90 | . . . . 12 78 Melee . | . . . . . . Projectile . | . . . . . . AOE 90 | . . . . 12 78 Terrain Rammed . | . . . . . . Walls Destroyed . | . . . . . . Machines Disabled . | . . . . . . Actions | -11 -10 -10 -9 -8 -8 --------- Run | Yrd Mat Min Mat Mat Sto Total 3237 | 96 429 573 689 848 602 Wait 668 | 4 16 200 168 201 79 Move 2156 | 64 374 333 443 531 411 Hop . | . . . . . . Pick Up 52 | 15 11 5 3 8 10 Fast Attach 17 | . . 1 8 6 2 Attach 20 | 7 . . 1 5 7 Detach 1 | . . . . 1 . Swap 27 | . 2 2 5 9 9 Drop 48 | . 9 8 14 13 4 Fire 247 | 6 17 23 47 74 80 Melee . | . . . . . . Ram . | . . . . . . Kick . | . . . . . . Crush . | . . . . . . Escape Stasis . | . . . . . . Rewire 1 | . . 1 . . . Trap . | . . . . . . Miscellaneous . | . . . . . . Route ------- -11/Scrapyard -10/Materials (discovered 2 exits: *Min x2) -10/Mines -9/Materials -8/Materials -8/Storage History --------- Turn | Location | Event 9 | -11/Scrapyard | Discovered new exit (range 16) 118 | -11/Scrapyard | Entered Materials 305 | -10/Materials | Build established: Mutant 374 | -10/Materials | Discovered new exit (range 7) 535 | -10/Materials | Discovered new exit (range 16) 653 | -10/Materials | Entered Mines 657 | -10/Mines | Met a Derelict shopkeep closing up shop 732 | -10/Mines | Assembled infested the area 1085 | -10/Mines | Learned Materials trap positions 1413 | -10/Mines | Discovered new exit (range 15) 1494 | -10/Mines | Learned Materials stockpile data 1511 | -10/Mines | Entered Materials 1511 | -9/Materials | Evolved 2 slots: Propulsion x1, Utility x1 1512 | -9/Materials | Loaded intel: 21 trap records 2504 | -9/Materials | Discovered new exit (range 16) 2528 | -9/Materials | Entered another Materials area 2528 | -8/Materials | Evolved 2 slots: Utility x2 3271 | -8/Materials | Build established: Scavenger-Skirmisher 3635 | -8/Materials | Identified exit to Storage 3696 | -8/Materials | Build established: Mutant 3833 | -8/Materials | Entered Storage 3994 | -8/Storage | Lost 4 parts (2n1u1w) 4366 | -8/Storage | Met a pair of Derelict thieves 4487 | -8/Storage | Lost 3 parts (2n1u) 4526 | -8/Storage | Core integrity fell below 50% 4815 | -8/Storage | Core integrity fell below 20% 4821 | -8/Storage | Destroyed by Y-45 Defender with Beam Rifle Last Messages --------------- 04711_ ALERT: Hostiles spotted, dispatching reinforcements to Terminal S014. 04724_ System corrupted: Matter fused (-9). 04728_ Lgt. Armor Plating destroyed. 04728_ Critical hit (Burn: +37). 04759_ Connecting with Terminal... 04764_ System corrupted: Matter fused (-10). 04778_ Connecting with Door Terminal... >>Open(Door) Sealed Heavy Doors opened. 04782_ Imp. Assault Rifle destroyed. 04783_ Med. Treads destroyed. 04794_ Lgt. Treads destroyed. 04801_ XK |FLNAAS>LF:ETRJDJOA>LA 04804_ Enh. Autogun destroyed. 04804_ Critical hit (Burn: +37). 04806_ Mic. Nuclear Core destroyed. 04808_ Critical hit (Burn: +37). 04814_ Lgt. Treads destroyed. 04819_ Critical hit (Burn: +37). Map ----- +----------------------------------------------------+ | ???????????????????????????# # #####+## #? | | ???????????????????????????# / # # ## | | ???????????????????????????# # "T" # !!! + | | ????????????????############ # """ # !!! # | | ????????????? #? # !!! # | | ?????????????????###### ##/##### + | | ?????????????????# #???# ### | | ?????????????????# #???#### #???# | | ?????????????????# ###+###?????#####??# | | ?????????????????# ###T #???????# ?# | | ?????????????????# #?## #???????# ?# | | ?????????????????# #??#=#???????# /!! # | | ?????????????????# #??###???????# !! # | | ?????????????????# #??####??????# !! " | | ?????????????????# g #? ?????# # | | ?????????????????# Ya#?"""""?????######### | | ?????????????????##### # """"" ????????????#% | | ???????????########### # """"" #??????#####/ | | ???????????# # + #??????# * | | ???????????# # # "" #??# ??# *% | | ???????????# # # "G #??# # [* | | ??????????????"" """ ; g #? "" #??# % !% | | ??????????????"" """ # g #? #??# = | | ??????????????"" """ # #??"T"####??# # | | ???????????? # #??####?????# | | ???????????? #@ #???????????# | | ?????????????##"T"#### #???????????# # | | ??????????????####???# #???????????# ## # | | ?????????????????????+ #???????????# ??##### | | ?????????????????????# g #???????????# ??????? | | ?????????????????????#Y #???????????# ???????? | | ?????????????????????+ #????????????????????? | | ?????????????????????#b a#????????????????????? | | ?????????????????????# g #????????????????????? | | ?????????????????????? #????????????????????? | | ?????????????????????? #????????????????????? | | ?????????????????????? #????????????????????? | | ?????????????????????? #????????????????????? | | ?????????????????????? #????????????????????? | | ?????????????????????? #????????????????????? | | ?????????????????????? ?????????????????????? | | ??????????????????????????????????????????????? | | ??????????????????????????????????????????????? | | ??????????????????????????????????????????????? | | ??????????????????????????????????????????????? | | ??????????????????????????????????????????????? | | ??????????????????????????????????????????????? | | ??????????????????????????????????????????????? | | ??????????????????????????????????????????????? | | ??????????????????????????????????????????????? | +----------------------------------------------------+ Best States ------------- Heat Dissipation 31 Energy Generation 15 Energy Capacity 280 Matter Stores 300 Matter Capacity 300 Sight Range 18 Robot Scan Range 14 Terrain Scan Range 16 Terrain Scan Density 10 Armor Coverage 300 Power Shielding 66 Evasion (%) 55 Armor Integrity Analysis 30 Recoil Reduction 3 Item Schematics ----------------- None Robot Schematics ------------------ None Fabricated ------------ Nothing Alien Tech Used ----------------- None Achievements -------------- None Challenges ------------ None Game ------ Seed SensorAntigravMediator Manual? 0 Play Time 01:14:36 Cumulative 9.0 hours Start 2024.04.11 @ 09:44:55 End 2024.04.11 @ 12:54:35 Sessions 3 Manual Loads 0 Difficulty Rogue Special Mode None Game No. 8 Rogue 8 Adventurer 0 Explorer 0 Win Type - Total 0 Types 0/0/0/0/0/0/0/0/0 Lore% 7 Gallery% 12 Achievement% 14 Wizard Run 0 Options --------- Layout 2 ASCII 0 Keyboard 0 Movement Mouse Keybinds 0 Fullscreen 2 Font 24/Smallcaps Map View 50x44 Zoom Use 0% Tactical HUD 1 Map Filters NONE Filters NONE Steam 1 RUN: a65fd341-f37f-4274-93cd-34ba27ae1d3c